fUSD/lending_fUSD_20241106
["ID","MTS","AMOUNT","RATE_DAILY","PERIOD"]
[341482662,1730920320395,-500.0,0.00031777,2]
[341482663,1730920320405,-151.0,0.00031777,7]
[341482664,1730920320415,-509.49,0.00031777,2]
[341482665,1730920320427,-500.0,0.00031777,2]
[341482666,1730920320437,-500.0,0.00031777,2]
[341482667,1730920320446,-500.0,0.00031777,2]
[341482668,1730920320455,-500.0,0.00031777,2]
[341482669,1730920320465,-879.12,0.00031777,2]
[341482670,1730920320475,-500.0,0.00031777,2]
[341482671,1730920320486,-500.0,0.00031777,2]
[341482672,1730920320497,-500.0,0.00031777,2]
[341482673,1730920320507,-500.0,0.00031777,2]
[341482674,1730920320517,-500.0,0.00031777,2]
[341482675,1730920320528,-631.8,0.00031777,2]
[341482676,1730920320538,-500.0,0.00031777,2]
[341482677,1730920320549,-500.0,0.00031777,2]
[341482678,1730920320561,-500.0,0.00031777,2]
[341482679,1730920320573,-502.11,0.00031777,2]
[341482680,1730920320583,-500.0,0.00031777,2]
[341482681,1730920320593,-500.0,0.00031777,2]
[341482682,1730920320604,-1139.32,0.00031777,2]
[341482683,1730920320613,-500.0,0.00031777,2]
[341482684,1730920320623,-500.0,0.00031777,2]
[341482685,1730920320636,-777.88,0.00031777,2]
[341482686,1730920320646,-500.0,0.00031777,2]
[341482687,1730920320655,-500.0,0.00031777,2]
[341482688,1730920320666,-151.0,0.00031777,7]
[341482689,1730920320677,-270.937257,0.00031777,7]
[341482690,1730920320686,-500.0,0.00031777,2]
[341482691,1730920320696,-500.0,0.00031777,2]
[341482692,1730920320706,-500.0,0.00031777,2]
[341482693,1730920320717,-151.0,0.00031777,7]
[341482694,1730920320727,-500.0,0.00031777,2]
[341482695,1730920320736,-523.59,0.00031777,2]
[341482696,1730920320745,-500.0,0.00031777,2]
[341482697,1730920320755,-500.0,0.00031777,2]
[341482698,1730920320765,-500.0,0.00031777,2]
[341482699,1730920320777,-500.0,0.00031777,2]
[341482700,1730920320789,-500.0,0.00031777,2]
[341482701,1730920320799,-500.0,0.00031777,2]
[341482702,1730920320809,-866.77,0.00031777,2]
[341482703,1730920320818,-500.0,0.00031777,2]
[341482704,1730920320827,-500.0,0.00031777,2]
[341482705,1730920320837,-234.076632,0.00031777,7]
[341482706,1730920320847,-500.0,0.00031777,2]
[341482707,1730920320856,-275.54818307,0.00031777,2]
[341482708,1730920321456,-224.45181693,0.00031777,2]
[341482709,1730920321466,-214.22081259,0.00031777,7]
[341482710,1730920321514,-19.85581941,0.00031777,7]
[341482711,1730920321524,-500.0,0.00031777,2]
[341482712,1730920321535,-500.0,0.00031777,2]
[341482713,1730920321546,-175.088611,0.00031777,7]
[341482714,1730920321558,-500.0,0.00031777,2]
[341482715,1730920321568,-175.088611,0.00031777,7]
[341482716,1730920321578,-580.54,0.00031777,2]
[341482717,1730920321588,-119.44389313,0.00031777,2]
[341482718,1730920321602,-380.55610687,0.00031777,2]
[341482719,1730920321613,-500.0,0.00031777,2]
[341482720,1730920321624,-500.0,0.00031777,2]
[341482721,1730920321634,-500.0,0.00031777,2]
[341482722,1730920321644,-500.0,0.00031777,2]
[341482723,1730920321655,-500.0,0.00031777,2]
[341482724,1730920321665,-500.0,0.00031777,2]
[341482725,1730920321675,-503.56659843,0.00031777,2]
[341482726,1730920321687,-668.18,0.00031777,2]
[341482727,1730920321696,-500.0,0.00031777,2]
[341482728,1730920321705,-500.0,0.00031777,2]
[341482729,1730920321715,-500.0,0.00031777,2]
[341482730,1730920321726,-536.41,0.00031777,2]
[341482731,1730920321736,-500.0,0.00031777,2]
[341482732,1730920321745,-500.0,0.00031777,2]
[341482733,1730920321755,-500.0,0.00031777,2]
[341482734,1730920321765,-500.0,0.00031777,2]
[341482735,1730920321775,-500.0,0.00031777,2]
[341482736,1730920321787,-562.94,0.00031777,2]
[341482737,1730920321798,-500.0,0.00031777,7]
[341482738,1730920321808,-500.0,0.00031777,2]
[341482739,1730920321818,-500.0,0.00031777,2]
[341482740,1730920321828,-437.99074,0.00031777,2]
[341482741,1730920321837,-500.0,0.00031777,2]
[341482742,1730920321847,-500.0,0.00031777,2]
[341482743,1730920321856,-500.0,0.00031777,2]
[341482744,1730920321865,-500.0,0.00031777,2]
[341482745,1730920321875,-500.0,0.00031777,2]
[341482746,1730920321885,-500.0,0.00031777,2]
[341482747,1730920321894,-500.0,0.00031777,2]
[341482748,1730920321904,-500.0,0.00031777,2]
[341482749,1730920321913,-500.0,0.00031777,2]
[341482750,1730920321923,-500.0,0.00031777,2]
[341482751,1730920321935,-500.0,0.00031777,2]
[341482753,1730920321945,-500.0,0.00031777,2]
[341482754,1730920321954,-500.0,0.00031777,2]
[341482755,1730920321963,-500.0,0.00031777,2]
[341482756,1730920321972,-1118.72,0.00031777,2]
[341482757,1730920321981,-500.0,0.00031777,2]
[341482758,1730920321991,-500.0,0.00031777,2]
[341482759,1730920322000,-1484.13,0.00031777,2]
[341482760,1730920322010,-500.0,0.00031777,2]
[341482761,1730920322020,-500.0,0.00031777,2]
[341482762,1730920322030,-500.0,0.00031777,2]
[341482763,1730920322040,-500.0,0.00031777,2]
[341482764,1730920322049,-500.0,0.00031777,2]
[341482765,1730920322059,-500.0,0.00031777,2]
[341482766,1730920322069,-730.83,0.00031777,2]
[341482767,1730920322078,-500.0,0.00031777,2]
[341482768,1730920322088,-500.0,0.00031777,2]
[341482769,1730920322097,-500.0,0.00031777,2]
[341482770,1730920322106,-500.0,0.00031777,2]
[341482771,1730920322116,-500.0,0.00031777,2]
[341482772,1730920322125,-500.0,0.00031777,2]
[341482773,1730920322135,-500.0,0.00031777,2]
[341482774,1730920322144,-500.0,0.00031777,2]
[341482775,1730920322154,-787.07,0.00031777,2]
[341482776,1730920322163,-500.0,0.00031777,2]
[341482777,1730920322173,-837.19,0.00031777,2]
[341482778,1730920322183,-157.44436774,0.00031777,2]
[341482779,1730920322193,-500.0,0.00031777,2]
[341482780,1730920322203,-574.94,0.00031777,2]
[341482781,1730920322212,-500.0,0.00031777,2]
[341482782,1730920322222,-500.0,0.00031777,2]
[341482783,1730920322232,-500.0,0.00031777,2]
[341482784,1730920322242,-500.0,0.00031777,2]
[341482785,1730920322251,-500.0,0.00031777,2]
[341482786,1730920322260,-500.0,0.00031777,2]
[341482787,1730920322270,-500.0,0.00031777,2]
[341482788,1730920322279,-500.0,0.00031777,2]
[341482789,1730920322289,-500.0,0.00031777,2]
[341482790,1730920322299,-15.96910762,0.00031777,2]
[341482791,1730920322824,-500.0,0.00027397,2]
[341482792,1730920322835,-500.0,0.00027397,2]
[341482793,1730920322845,-357.8063294,0.00027397,2]
[341482794,1730920324197,-500.0,0.00026548,2]
[341482795,1730920324208,-247.36685242,0.00026548,2]
[341482796,1730920324219,-142.1936706,0.00027397,2]
[341482797,1730920324229,-500.0,0.00027397,2]
[341482798,1730920324240,-500.0,0.00027397,2]
[341482799,1730920324250,-500.0,0.00027397,2]
[341482800,1730920324260,-601.79660404,0.00027397,2]
[341482801,1730920324270,-500.0,0.00027397,2]
[341482802,1730920324280,-500.0,0.00027397,2]
[341482803,1730920324289,-500.0,0.00027397,2]
[341482804,1730920324299,-500.0,0.00027397,2]
[341482805,1730920324310,-508.73237431,0.00027397,2]
[341482806,1730920324320,-500.0,0.00027397,2]
[341482807,1730920324330,-551.51,0.00027397,10]
[341482808,1730920324339,-585.90438923,0.00027434,2]
[341482809,1730920324349,-500.0,0.00027671,2]
[341482810,1730920324358,-500.0,0.00027671,2]
[341482811,1730920324368,-500.0,0.00027671,2]
[341482812,1730920324377,-500.0,0.00027671,2]
[341482813,1730920324386,-1200.0,0.000278,10]
[341482814,1730920324396,-1700.0,0.000279,10]
[341482815,1730920324405,-500.0,0.00027945,2]
[341482816,1730920324415,-500.0,0.00027945,2]
[341482817,1730920324424,-500.0,0.00027945,2]
[341482818,1730920324436,-500.0,0.00028219,2]
[341482819,1730920324446,-500.0,0.00028219,2]
[341482820,1730920324455,-227.13592967,0.00028393,5]
[341482821,1730920324464,-294.79809973,0.00028493,7]
[341482822,1730920324536,-59.42556783,0.00028493,7]
[341482823,1730920324548,-81.78602244,0.00028493,7]
[341482824,1730920324559,-500.0,0.00028493,2]
[341482825,1730920324569,-500.0,0.00028493,2]
[341482826,1730920324578,-436.00969,0.00028767,7]
[341482827,1730920324588,-500.0,0.00028767,2]
[341482828,1730920324597,-436.00969,0.00029041,7]
[341482829,1730920324607,-500.0,0.00029041,2]
[341482830,1730920324616,-500.0,0.00029315,2]
[341482831,1730920324626,-436.00969,0.00029589,7]
[341482832,1730920324635,-304.07477535,0.00029589,2]
[341482833,1730920324645,-436.00969,0.00029863,7]
[341482834,1730920324658,-351.92178104,0.0003041,7]
[341482835,1730920324690,-500.0,0.00027397,2]
[341482836,1730920324699,-2100.0,0.000289,10]
[341482837,1730920324710,-84.08790896,0.0003041,7]
[341482838,1730920324720,-322.13609104,0.00030901,7]
[341482839,1730920324733,-113.87359896,0.00030901,7]
[341482840,1730920324742,-436.00969,0.00031232,7]
[341482841,1730920324753,-436.00969,0.00031232,7]
[341482842,1730920324763,-436.00969,0.00031776,7]
[341482843,1730920324773,-500.0,0.00031776,2]
[341482844,1730920324783,-322.46859334,0.00031776,7]
[341482845,1730920324795,-113.54109666,0.00031776,7]
[341482846,1730920324805,-213.63455461,0.00031777,2]
[341482847,1730920324817,-278.06748919,0.00031777,2]
[341482848,1730920324827,-500.0,0.00031777,2]
[341482849,1730920324837,-48.77251081,0.00031777,2]
[341482850,1730920325448,-451.22748919,0.00031777,2]
[341482851,1730920325457,-150.0,0.00031777,2]
[341482852,1730920325467,-221.34597244,0.00031777,2]
[341482853,1730920325477,-557.96,0.00031777,2]
[341482854,1730920325486,-182.12915337,0.00031777,2]
[341482855,1730920325507,-317.87084663,0.00031777,2]
[341482856,1730920325516,-152.38531419,0.00031777,2]
[341482857,1730920325527,-347.61468581,0.00031777,2]
[341482858,1730920325537,-500.0,0.00031777,2]
[341482859,1730920325546,-1007.84,0.00031777,2]
[341482860,1730920325556,-1100.18,0.00031777,2]
[341482861,1730920325566,-500.0,0.00031777,2]
[341482862,1730920325575,-500.0,0.00031777,2]
[341482863,1730920325585,-984.33,0.00031777,2]
[341482864,1730920325595,-500.0,0.00031777,2]
[341482865,1730920325604,-500.0,0.00031777,2]
[341482866,1730920325614,-500.0,0.00031777,2]
[341482867,1730920325624,-500.0,0.00031777,2]
[341482868,1730920325634,-554.79,0.00031777,2]
[341482869,1730920325645,-503.97564459,0.00031778,2]
[341482870,1730920325658,-500.0,0.00031778,2]
[341482871,1730920325668,-500.0,0.00031778,2]
[341482872,1730920325680,-500.0,0.00031778,2]
[341482873,1730920325690,-500.0,0.00031778,2]
[341482874,1730920325700,-500.0,0.00031778,2]
[341482875,1730920325709,-533.72752062,0.00031778,2]
[341482876,1730920325718,-500.0,0.00031778,2]
[341482877,1730920325728,-500.0,0.00031778,2]
[341482878,1730920325738,-500.0,0.00031778,2]
[341482879,1730920325747,-516.56564622,0.00031778,2]
[341482880,1730920325756,-500.0,0.00031778,2]
[341482881,1730920325765,-500.0,0.00031778,2]
[341482882,1730920325774,-912.53,0.00031778,2]
[341482883,1730920325783,-500.0,0.00031778,2]
[341482884,1730920325792,-373.25839239,0.00031778,2]
[341482885,1730920325801,-500.0,0.00031778,2]
[341482886,1730920325810,-500.0,0.00031778,2]
[341482887,1730920325820,-510.78,0.00031778,2]
[341482888,1730920325829,-500.0,0.00031778,2]
[341482889,1730920325841,-500.0,0.00031778,2]
[341482890,1730920325850,-566.7,0.00031778,2]
[341482891,1730920325859,-384.07104238,0.00031778,2]
[341482892,1730920325868,-500.0,0.00031778,2]
[341482893,1730920325877,-500.0,0.00031778,2]
[341482894,1730920325887,-500.0,0.00031778,2]
[341482895,1730920325896,-500.0,0.00031778,2]
[341482896,1730920325906,-500.0,0.00031778,2]
[341482897,1730920325915,-500.0,0.00031778,2]
[341482898,1730920325926,-500.0,0.00031778,2]
[341482899,1730920325938,-500.0,0.00031778,2]
[341482900,1730920325947,-500.0,0.00031778,2]
[341482901,1730920325956,-500.0,0.00031778,2]
[341482902,1730920325965,-1164.79,0.00031778,2]
[341482903,1730920325974,-539.21,0.00031778,2]
[341482904,1730920325983,-500.0,0.00031778,2]
[341482905,1730920325993,-354.78,0.00031778,2]
[341482906,1730920326002,-1180.52,0.00031778,2]
[341482907,1730920326011,-500.0,0.00031778,2]
[341482908,1730920326021,-500.0,0.00031778,2]
[341482909,1730920326030,-1041.99,0.00031778,2]
[341482910,1730920326039,-500.0,0.00031778,2]
[341482911,1730920326048,-500.0,0.00031778,2]
[341482912,1730920326057,-500.0,0.00031778,2]
[341482913,1730920326066,-500.0,0.00031778,2]
[341482914,1730920326075,-500.0,0.00031778,2]
[341482915,1730920326084,-500.0,0.00031778,2]
[341482916,1730920326094,-500.0,0.00031778,2]
[341482917,1730920326103,-500.0,0.00031778,2]
[341482918,1730920326112,-500.0,0.00031778,2]
[341482919,1730920326121,-500.0,0.00031778,2]
[341482920,1730920326131,-500.0,0.00031778,2]
[341482921,1730920326140,-608.73,0.00031778,2]
[341482922,1730920326150,-527.26035199,0.00031778,2]
[341482923,1730920326159,-500.0,0.00031778,2]
[341482924,1730920326168,-715.43,0.00031778,2]
[341482925,1730920326179,-500.0,0.00031778,2]
[341482926,1730920326188,-500.0,0.00031778,2]
[341482927,1730920326197,-590.61,0.00031778,2]
[341482928,1730920326207,-500.0,0.00031778,2]
[341482929,1730920326216,-697.21,0.00031778,2]
[341482930,1730920326225,-500.0,0.00031778,2]
[341482931,1730920326234,-501.92515362,0.00031778,2]
[341482932,1730920326243,-500.0,0.00031778,2]
[341482933,1730920326252,-539.57,0.00031778,2]
[341482934,1730920326262,-584.23,0.00031778,2]
[341482935,1730920326271,-500.0,0.00031778,2]
[341482936,1730920326280,-500.0,0.00031778,2]
[341482937,1730920326289,-500.0,0.00031778,2]
[341482938,1730920326298,-563.27,0.00031778,2]
[341482939,1730920326308,-500.0,0.00031778,2]
[341482940,1730920326317,-500.0,0.00031778,2]
[341482941,1730920326326,-500.0,0.00031778,2]
[341482942,1730920326334,-500.0,0.00031778,2]
[341482943,1730920326344,-612.29,0.00031778,2]
[341482944,1730920326353,-500.0,0.00031778,2]
[341482945,1730920326362,-500.0,0.00031778,2]
[341482946,1730920326372,-500.0,0.00031778,2]
[341482947,1730920326381,-500.0,0.00031778,2]
[341482948,1730920326390,-1249.1,0.00031778,2]
[341482949,1730920326399,-500.0,0.00031778,2]
[341482950,1730920326407,-500.0,0.00031778,2]
[341482951,1730920326416,-500.0,0.00031778,2]
[341482952,1730920326425,-500.0,0.00031778,2]
[341482953,1730920326436,-500.0,0.00031778,2]
[341482954,1730920326446,-874.71,0.00031778,2]
[341482955,1730920326455,-500.0,0.00031778,2]
[341482956,1730920326464,-500.0,0.00031778,2]
[341482957,1730920326473,-500.0,0.00031778,2]
[341482958,1730920326483,-500.0,0.00031778,2]
[341482959,1730920326492,-500.0,0.00031778,2]
[341482960,1730920326503,-614.48,0.00031778,2]
[341482961,1730920326513,-500.0,0.00031778,2]
[341482962,1730920326522,-500.0,0.00031778,2]
[341482963,1730920326531,-500.0,0.00031778,2]
[341482964,1730920326540,-500.0,0.00031778,2]
[341482965,1730920326549,-504.52366904,0.00031778,2]
[341482966,1730920326558,-1268.75,0.00031778,2]
[341482967,1730920326567,-500.0,0.00031778,2]
[341482968,1730920326576,-500.0,0.00031778,2]
[341482969,1730920326586,-1911.2,0.00031778,2]
[341482970,1730920326594,-500.0,0.00031778,2]
[341482971,1730920326603,-636.88,0.00031778,2]
[341482972,1730920326612,-1174.15,0.00031778,2]
[341482973,1730920326622,-500.0,0.00031778,2]
[341482974,1730920326631,-500.0,0.00031778,2]
[341482975,1730920326640,-500.0,0.00031778,2]
[341482976,1730920326652,-500.0,0.00031778,2]
[341482977,1730920326662,-500.0,0.00031778,2]
[341482978,1730920326670,-847.24,0.00031778,2]
[341482979,1730920326680,-500.0,0.00031778,2]
[341482980,1730920326690,-650.05,0.00031778,2]
[341482981,1730920326699,-500.0,0.00031778,2]
[341482982,1730920326708,-500.0,0.00031778,2]
[341482983,1730920326718,-151.0,0.00031778,7]
[341482984,1730920326727,-500.0,0.00031778,2]
[341482985,1730920326736,-1006.43,0.00031778,2]
[341482986,1730920326745,-500.0,0.00031778,2]
[341482987,1730920326756,-519.02614892,0.00031778,2]
[341482988,1730920326765,-264.28174442,0.00031778,2]
[341482989,1730920326807,-235.71825558,0.00031778,2]
[341482990,1730920326817,-965.72347464,0.00031778,2]
[341482991,1730920326827,-820.70652536,0.00031778,2]
[341482992,1730920326839,-500.0,0.00031778,2]
[341482993,1730920326852,-500.0,0.00031778,2]
[341482994,1730920326866,-500.0,0.00031778,2]
[341482995,1730920326879,-500.0,0.00031778,2]
[341482996,1730920326891,-150.0,0.00031778,2]
[341482997,1730920326901,-500.0,0.00031778,2]
[341482998,1730920326913,-1445.5,0.00031778,2]
[341482999,1730920326925,-500.0,0.00031778,2]
[341483000,1730920326939,-151.0,0.00031778,7]
[341483001,1730920326953,-500.0,0.00031778,2]
[341483002,1730920326965,-500.0,0.00031778,2]
[341483003,1730920326977,-294.78115987,0.00031778,2]
[341483004,1730920327254,-500.0,0.00027397,2]
[341483005,1730920327268,-500.0,0.00027397,2]
[341483006,1730920327278,-500.0,0.00027397,2]
[341483007,1730920327288,-500.0,0.00027671,2]
[341483008,1730920327299,-205.21884013,0.00031778,2]
[341483009,1730920327310,-262.518109,0.00031778,7]
[341483010,1730920327323,-155.539807,0.00031778,7]
[341483011,1730920327336,-500.0,0.00031778,2]
[341483012,1730920327349,-938.27,0.00031778,2]
[341483013,1730920327359,-1572.2,0.00031778,2]
[341483014,1730920327370,-500.0,0.00031778,2]
[341483015,1730920327382,-500.0,0.00031778,2]
[341483016,1730920327393,-500.0,0.00031778,2]
[341483017,1730920327407,-995.41,0.00031778,2]
[341483018,1730920327418,-500.0,0.00031778,2]
[341483019,1730920327428,-500.0,0.00031778,2]
[341483020,1730920327441,-500.0,0.00031778,2]
[341483021,1730920327451,-1394.54,0.00031778,2]
[341483022,1730920327462,-1126.28,0.00031778,2]
[341483023,1730920327479,-500.0,0.00031778,2]
[341483024,1730920327495,-691.02,0.00031778,2]
[341483025,1730920327511,-500.0,0.00031778,2]
[341483026,1730920327525,-999.47,0.00031778,2]
[341483027,1730920327536,-151.0,0.00031778,7]
[341483028,1730920327547,-76.60924387,0.00031778,2]
[341483029,1730920327623,-423.39075613,0.00031778,2]
[341483030,1730920327634,-500.0,0.00031778,2]
[341483031,1730920327647,-151.0,0.00031778,7]
[341483032,1730920327658,-500.0,0.00031778,2]
[341483033,1730920327669,-228.74858418,0.00031778,2]
[341483034,1730920327848,-500.0,0.00027397,2]
[341483035,1730920327860,-500.0,0.00027945,2]
[341483036,1730920327872,-271.25141582,0.00031778,2]
[341483037,1730920327883,-500.0,0.00031778,2]
[341483038,1730920327893,-104.14858418,0.00031778,2]
[341483039,1730920327907,-395.85141582,0.00031778,2]
[341483040,1730920327919,-500.0,0.00031778,2]
[341483041,1730920327933,-984.65310197,0.00031778,2]
[341483042,1730920327946,-397.82689803,0.00031778,2]
[341483043,1730920327958,-959.29,0.00031778,2]
[341483044,1730920327969,-500.0,0.00031778,2]
[341483045,1730920327980,-500.0,0.00031778,2]
[341483046,1730920327991,-500.0,0.00031778,2]
[341483047,1730920328002,-500.0,0.00031778,2]
[341483048,1730920328014,-500.0,0.00031778,2]
[341483049,1730920328026,-500.0,0.00031778,2]
[341483050,1730920328037,-500.0,0.00031778,2]
[341483051,1730920328048,-500.0,0.00031778,2]
[341483052,1730920328059,-500.0,0.00031778,2]
[341483053,1730920328070,-791.8,0.00031778,2]
[341483054,1730920328081,-500.0,0.00031778,2]
[341483055,1730920328093,-500.0,0.00031778,2]
[341483056,1730920328105,-835.55,0.00031778,2]
[341483057,1730920328116,-500.0,0.00031778,2]
[341483058,1730920328127,-641.46,0.00031778,2]
[341483059,1730920328139,-151.0,0.00031778,7]
[341483060,1730920328151,-551.82,0.00031778,2]
[341483061,1730920328162,-1481.63,0.00031778,2]
[341483062,1730920328174,-500.0,0.00031778,2]
[341483063,1730920328187,-500.0,0.00031778,2]
[341483064,1730920328198,-504.51,0.00031778,2]
[341483065,1730920328209,-500.0,0.00031778,2]
[341483066,1730920328220,-500.0,0.00031778,2]
[341483067,1730920328232,-500.0,0.00031778,2]
[341483068,1730920328243,-504.52,0.00031778,2]
[341483069,1730920328254,-500.0,0.00031778,2]
[341483070,1730920328264,-576.27,0.00031778,2]
[341483071,1730920328276,-500.0,0.00031778,2]
[341483072,1730920328287,-500.0,0.00031778,2]
[341483073,1730920328298,-1209.3,0.00031778,2]
[341483074,1730920328308,-775.4,0.00031778,2]
[341483075,1730920328320,-660.17,0.00031778,2]
[341483076,1730920328331,-500.0,0.00031778,2]
[341483077,1730920328343,-1153.71,0.00031778,2]
[341483078,1730920328355,-405.24604812,0.00031778,2]
[341483079,1730920328366,-750.76,0.0003178,2]
[341483080,1730920328377,-500.0,0.0003178,2]
[341483081,1730920328388,-997.57,0.0003178,2]
[341483082,1730920328399,-500.0,0.0003178,2]
[341483083,1730920328410,-500.0,0.0003178,2]
[341483084,1730920328422,-500.0,0.0003178,2]
[341483085,1730920328436,-1292.06,0.0003178,2]
[341483086,1730920328450,-500.0,0.0003178,2]
[341483087,1730920328461,-500.0,0.0003178,2]
[341483088,1730920328473,-1826.45,0.0003178,2]
[341483089,1730920328485,-621.32,0.0003178,2]
[341483090,1730920328496,-663.78,0.0003178,2]
[341483091,1730920328508,-546.43,0.0003178,2]
[341483092,1730920328518,-617.91,0.0003178,2]
[341483093,1730920328529,-1790.04,0.0003178,2]
[341483094,1730920328540,-500.0,0.0003178,2]
[341483095,1730920328551,-1554.56,0.0003178,2]
[341483096,1730920328562,-525.88,0.0003178,2]
[341483097,1730920328573,-500.0,0.0003178,2]
[341483098,1730920328584,-711.29,0.0003178,2]
[341483099,1730920328595,-1234.48,0.0003178,2]
[341483100,1730920328607,-500.0,0.0003178,2]
[341483101,1730920328618,-1153.06,0.0003178,2]
[341483102,1730920328630,-500.0,0.0003178,2]
[341483103,1730920328643,-957.34,0.0003178,2]
[341483104,1730920328656,-500.0,0.0003178,2]
[341483105,1730920328669,-1196.66,0.0003178,2]
[341483106,1730920328683,-1001.64,0.0003178,2]
[341483107,1730920328694,-1472.58,0.0003178,2]
[341483108,1730920328705,-500.0,0.0003178,2]
[341483109,1730920328716,-1605.02,0.0003178,2]
[341483110,1730920328729,-271.12,0.0003178,2]
[341483111,1730920328739,-652.62,0.0003178,2]
[341483112,1730920328751,-151.0,0.0003178,7]
[341483113,1730920328762,-1379.21,0.0003178,2]
[341483114,1730920328773,-1209.69,0.0003178,2]
[341483115,1730920328784,-151.0,0.0003178,7]
[341483116,1730920328796,-1638.01,0.0003178,2]
[341483117,1730920328807,-167.19323448,0.0003178,2]
[341483118,1730920328818,-1179.88,0.0003178,2]
[341483119,1730920328829,-500.0,0.0003178,2]
[341483120,1730920328840,-639.69,0.0003178,2]
[341483121,1730920328852,-600.21,0.0003178,2]
[341483122,1730920328863,-370.9949356,0.0003178,2]
[341483123,1730920328873,-912.36,0.0003178,2]
[341483124,1730920328884,-508.65,0.0003178,2]
[341483125,1730920328895,-500.0,0.0003178,2]
[341483126,1730920328906,-610.62,0.0003178,2]
[341483127,1730920328918,-500.0,0.0003178,2]
[341483128,1730920328929,-151.0,0.0003178,7]
[341483129,1730920328941,-151.0,0.0003178,7]
[341483130,1730920328951,-343.41522187,0.0003178,2]
[341483131,1730920328963,-1403.53,0.0003178,2]
[341483132,1730920328974,-951.98,0.0003178,2]
[341483133,1730920328985,-1718.49,0.0003178,2]
[341483134,1730920328997,-500.0,0.0003178,2]
[341483135,1730920329008,-856.963678,0.0003178,7]
[341483136,1730920329019,-770.26,0.0003178,2]
[341483137,1730920329030,-534.23,0.0003178,2]
[341483138,1730920329041,-886.88,0.0003178,2]
[341483139,1730920329052,-360.05337739,0.0003178,2]
[341483140,1730920329064,-856.963678,0.0003178,7]
[341483141,1730920329076,-500.0,0.0003178,2]
[341483142,1730920329087,-3128.73,0.0003178,2]
[341483143,1730920329099,-591.92,0.0003178,2]
[341483144,1730920329110,-1587.38,0.0003178,2]
[341483145,1730920329121,-1165.332698,0.0003178,7]
[341483146,1730920329132,-672.38,0.0003178,2]
[341483147,1730920329143,-1225.74,0.0003178,2]
[341483148,1730920329155,-1165.332698,0.0003178,7]
[341483149,1730920329167,-631.72,0.0003178,2]
[341483150,1730920329178,-1710.63,0.0003178,2]
[341483151,1730920329191,-813.74,0.0003178,2]
[341483152,1730920329202,-500.0,0.0003178,2]
[341483153,1730920329213,-500.0,0.0003178,2]
[341483154,1730920329224,-500.0,0.0003178,2]
[341483155,1730920329235,-747.59,0.0003178,2]
[341483156,1730920329247,-1093.9,0.0003178,2]
[341483157,1730920329258,-500.0,0.0003178,2]
[341483158,1730920329269,-180.00547847,0.0003178,2]
[341483159,1730920329280,-559.12,0.0003178,2]
[341483160,1730920329291,-500.0,0.0003178,2]
[341483161,1730920329302,-869.22,0.0003178,2]
[341483162,1730920329313,-815.31,0.0003178,2]